fUSD/lending_fUSD_20240212
["ID","MTS","AMOUNT","RATE_DAILY","PERIOD"]
[313803525,1707732654233,-500.0,0.0002323,2]
[313803526,1707732654242,-500.0,0.0002323,2]
[313803527,1707732654252,-568.84,0.0002323,2]
[313803528,1707732654265,-500.0,0.0002323,2]
[313803529,1707732654274,-613.32,0.0002323,2]
[313803530,1707732654284,-500.0,0.0002323,2]
[313803531,1707732654293,-500.0,0.0002323,2]
[313803532,1707732654302,-500.0,0.0002323,2]
[313803533,1707732654311,-500.0,0.0002323,2]
[313803534,1707732654321,-500.0,0.0002323,2]
[313803535,1707732654331,-1062.0,0.0002323,2]
[313803536,1707732654341,-500.0,0.0002323,2]
[313803537,1707732654350,-500.0,0.0002323,2]
[313803538,1707732654360,-888.32,0.0002323,2]
[313803539,1707732654370,-500.0,0.0002323,2]
[313803540,1707732654380,-953.38,0.0002323,2]
[313803541,1707732654390,-693.46,0.0002323,2]
[313803542,1707732654400,-769.06,0.0002323,2]
[313803543,1707732654409,-1184.86,0.0002323,2]
[313803544,1707732654419,-500.0,0.0002323,2]
[313803545,1707732654429,-604.59,0.0002323,2]
[313803546,1707732654439,-500.0,0.0002323,2]
[313803547,1707732654449,-500.0,0.0002323,2]
[313803548,1707732654458,-650.84,0.0002323,2]
[313803549,1707732654468,-500.0,0.0002323,2]
[313803550,1707732654478,-500.0,0.0002323,2]
[313803551,1707732654488,-560.10419399,0.0002323,2]
[313803552,1707732654497,-500.0,0.0002323,2]
[313803553,1707732654509,-804.72,0.0002323,2]
[313803554,1707732654519,-500.0,0.0002323,2]
[313803555,1707732654529,-500.0,0.0002323,2]
[313803556,1707732654539,-500.0,0.0002323,2]
[313803557,1707732654550,-500.0,0.0002323,2]
[313803558,1707732654559,-500.0,0.0002323,2]
[313803559,1707732654573,-801.6,0.0002323,2]
[313803560,1707732654583,-500.0,0.0002323,2]
[313803561,1707732654593,-500.0,0.0002323,2]
[313803562,1707732654603,-500.0,0.0002323,2]
[313803563,1707732654613,-509.35,0.0002323,2]
[313803564,1707732654623,-500.0,0.0002323,2]
[313803565,1707732654633,-500.0,0.0002323,2]
[313803566,1707732654644,-500.0,0.0002323,2]
[313803567,1707732654654,-500.0,0.0002323,2]
[313803568,1707732654664,-1192.79,0.0002323,2]
[313803569,1707732654676,-500.0,0.0002323,2]
[313803570,1707732654686,-958.1,0.0002323,2]
[313803571,1707732654696,-638.65,0.0002323,2]
[313803572,1707732654706,-500.0,0.0002323,2]
[313803573,1707732654715,-500.0,0.0002323,2]
[313803574,1707732654725,-500.0,0.0002323,2]
[313803575,1707732654735,-500.0,0.0002323,2]
[313803576,1707732654746,-1203.0,0.0002323,2]
[313803577,1707732654758,-500.0,0.0002323,2]
[313803578,1707732654770,-500.0,0.0002323,2]
[313803579,1707732654782,-579.27,0.0002323,2]
[313803580,1707732654792,-500.0,0.0002323,2]
[313803581,1707732654802,-525.49,0.0002323,2]
[313803582,1707732654811,-690.18,0.0002323,2]
[313803583,1707732654821,-1476.56,0.0002323,2]
[313803584,1707732654831,-500.0,0.0002323,2]
[313803585,1707732654841,-500.0,0.0002323,2]
[313803586,1707732654852,-885.37,0.0002323,2]
[313803587,1707732654862,-975.71,0.0002323,2]
[313803588,1707732654872,-500.0,0.0002323,2]
[313803589,1707732654882,-500.0,0.0002323,2]
[313803590,1707732654891,-167.20233101,0.0002323,2]
[313803591,1707732654901,-639.00511006,0.0002323,2]
[313803592,1707732654910,-500.0,0.0002323,2]
[313803593,1707732654920,-590.89,0.0002323,2]
[313803594,1707732654930,-1204.53,0.0002323,2]
[313803595,1707732654940,-288.41989151,0.0002323,2]
[313803596,1707732654950,-500.0,0.0002323,2]
[313803597,1707732654960,-691.02,0.0002323,2]
[313803598,1707732654969,-500.0,0.0002323,2]
[313803599,1707732654980,-660.8,0.0002323,2]
[313803600,1707732654989,-500.0,0.0002323,2]
[313803601,1707732654999,-1211.01,0.0002323,2]
[313803602,1707732655010,-500.0,0.0002323,2]
[313803603,1707732655020,-500.0,0.0002323,2]
[313803604,1707732655030,-2371.72,0.0002323,2]
[313803605,1707732655039,-4190.54,0.0002323,2]
[313803606,1707732655049,-500.0,0.0002323,2]
[313803607,1707732655059,-1096.1,0.0002323,2]
[313803608,1707732655069,-500.0,0.0002323,2]
[313803609,1707732655078,-1694.85,0.0002323,2]
[313803610,1707732655087,-686.49,0.0002323,2]
[313803611,1707732655097,-500.0,0.0002323,2]
[313803612,1707732655106,-500.0,0.0002323,2]
[313803613,1707732655115,-3109.15,0.0002323,2]
[313803614,1707732655124,-515.36,0.0002323,2]
[313803615,1707732655133,-500.0,0.0002323,2]
[313803616,1707732655143,-723.14,0.0002323,2]
[313803617,1707732655152,-500.0,0.0002323,2]
[313803618,1707732655161,-512.16,0.0002323,2]
[313803619,1707732655171,-500.0,0.0002323,2]
[313803620,1707732655181,-500.0,0.0002323,2]
[313803621,1707732655190,-2908.46,0.0002323,2]
[313803622,1707732655199,-2558.67,0.0002323,2]
[313803623,1707732655208,-500.0,0.0002323,2]
[313803624,1707732655218,-859.91,0.0002323,2]
[313803625,1707732655228,-1705.21,0.0002323,2]
[313803626,1707732655237,-500.0,0.0002323,2]
[313803627,1707732655247,-500.0,0.0002323,2]
[313803628,1707732655260,-945.94,0.0002323,2]
[313803629,1707732655270,-1815.45,0.0002323,2]
[313803630,1707732655280,-500.0,0.0002323,2]
[313803631,1707732655289,-835.09,0.0002323,2]
[313803632,1707732655299,-1244.88,0.0002323,2]
[313803633,1707732655310,-500.0,0.0002323,2]
[313803634,1707732655319,-2150.5,0.0002323,2]
[313803635,1707732655329,-500.0,0.0002323,2]
[313803636,1707732655339,-1518.75,0.0002323,2]
[313803637,1707732655349,-797.25,0.0002323,2]
[313803638,1707732655359,-549.46,0.0002323,2]
[313803639,1707732655369,-793.11,0.0002323,2]
[313803640,1707732655380,-500.0,0.0002323,2]
[313803641,1707732655390,-6540.11,0.0002323,2]
[313803642,1707732655400,-500.0,0.0002323,2]
[313803643,1707732655412,-500.0,0.0002323,2]
[313803644,1707732655424,-760.5,0.0002323,2]
[313803645,1707732655434,-885.05,0.0002323,2]
[313803646,1707732655445,-500.0,0.0002323,2]
[313803647,1707732655455,-500.0,0.0002323,2]
[313803648,1707732655465,-500.0,0.0002323,2]
[313803649,1707732655476,-824.29,0.0002323,2]
[313803650,1707732655486,-500.0,0.0002323,2]
[313803651,1707732655497,-1912.19,0.0002323,2]
[313803652,1707732655508,-500.0,0.0002323,2]
[313803653,1707732655518,-500.0,0.0002323,2]
[313803654,1707732655529,-524.07,0.0002323,2]
[313803655,1707732655540,-870.61,0.0002323,2]
[313803656,1707732655550,-500.0,0.0002323,2]
[313803657,1707732655561,-500.0,0.0002323,2]
[313803658,1707732655573,-500.0,0.0002323,2]
[313803659,1707732655583,-1407.77,0.0002323,2]
[313803660,1707732655594,-719.92,0.0002323,2]
[313803661,1707732655605,-589.94,0.0002323,2]
[313803662,1707732655615,-540.93985518,0.0002323,2]
[313803663,1707732655625,-500.0,0.0002323,2]
[313803664,1707732655639,-886.85,0.0002323,2]
[313803665,1707732655650,-889.16,0.0002323,2]
[313803666,1707732655660,-3364.83,0.0002323,2]
[313803667,1707732655671,-2253.41,0.0002323,2]
[313803668,1707732655681,-500.0,0.0002323,2]
[313803669,1707732655691,-2668.33,0.0002323,2]
[313803670,1707732655701,-500.0,0.0002323,2]
[313803671,1707732655711,-500.0,0.0002323,2]
[313803672,1707732655722,-2841.62,0.0002323,2]
[313803673,1707732655733,-500.0,0.0002323,2]
[313803674,1707732655744,-500.0,0.0002323,2]
[313803675,1707732655755,-500.0,0.0002323,2]
[313803676,1707732655769,-388.92047623,0.0002323,2]
[313803677,1707732655781,-1593.09,0.0002323,2]
[313803678,1707732655791,-3601.86,0.0002323,2]
[313803679,1707732655801,-507.68,0.0002323,2]
[313803680,1707732655811,-500.0,0.0002323,2]
[313803681,1707732655821,-622.34,0.0002323,2]
[313803682,1707732655831,-500.0,0.0002323,2]
[313803683,1707732655841,-3391.96,0.0002323,2]
[313803684,1707732655851,-1429.88,0.0002323,2]
[313803685,1707732655862,-500.0,0.0002323,2]
[313803686,1707732655872,-1751.81,0.0002323,2]
[313803687,1707732655883,-868.79,0.0002323,2]
[313803688,1707732655893,-500.0,0.0002323,2]
[313803689,1707732655903,-1586.87,0.0002323,2]
[313803690,1707732655913,-500.0,0.0002323,2]
[313803691,1707732655923,-552.92,0.0002323,2]
[313803692,1707732655933,-500.0,0.0002323,2]
[313803693,1707732655943,-695.87,0.0002323,2]
[313803694,1707732655954,-755.73,0.0002323,2]
[313803695,1707732655965,-507.58,0.0002323,2]
[313803696,1707732655975,-584.32,0.0002323,2]
[313803697,1707732655985,-6607.13,0.0002323,2]
[313803698,1707732655995,-2271.43,0.0002323,2]
[313803699,1707732656007,-500.0,0.0002323,2]
[313803700,1707732656017,-1011.5,0.0002323,2]
[313803701,1707732656027,-500.0,0.0002323,2]
[313803702,1707732656037,-404.89,0.0002323,2]
[313803703,1707732656047,-736.11,0.0002323,2]
[313803704,1707732656058,-4373.01254494,0.00023279,2]
[313803705,1707732656069,-589.7,0.0002333,2]
[313803706,1707732656079,-950.13,0.0002333,2]
[313803707,1707732656090,-854.61,0.0002333,2]
[313803708,1707732656101,-500.0,0.0002333,2]
[313803709,1707732656112,-892.93,0.0002333,2]
[313803710,1707732656122,-680.99,0.0002333,2]
[313803711,1707732656132,-887.49,0.0002333,2]
[313803712,1707732656143,-821.0,0.0002333,2]
[313803713,1707732656154,-826.48,0.0002333,2]
[313803714,1707732656164,-502.02,0.0002333,2]
[313803715,1707732656174,-500.0,0.0002333,2]
[313803716,1707732656187,-500.0,0.0002333,2]
[313803717,1707732656197,-2045.22,0.0002333,2]
[313803718,1707732656206,-500.0,0.0002333,2]
[313803719,1707732656216,-524.97,0.0002333,2]
[313803720,1707732656226,-859.41,0.0002333,2]
[313803721,1707732656236,-500.0,0.0002333,2]
[313803722,1707732656246,-500.0,0.0002333,2]
[313803723,1707732656259,-927.55,0.0002333,2]
[313803724,1707732656269,-500.0,0.0002333,2]
[313803725,1707732656278,-548.37,0.0002333,2]
[313803726,1707732656288,-500.0,0.0002333,2]
[313803727,1707732656298,-500.0,0.0002333,2]
[313803728,1707732656307,-500.0,0.0002333,2]
[313803729,1707732656317,-500.0,0.0002333,2]
[313803730,1707732656327,-500.0,0.0002333,2]
[313803731,1707732656337,-500.0,0.0002333,2]
[313803732,1707732656346,-500.0,0.0002333,2]
[313803733,1707732656357,-564.15,0.0002333,2]
[313803734,1707732656367,-500.0,0.0002333,2]
[313803735,1707732656377,-500.0,0.0002333,2]
[313803736,1707732656387,-500.0,0.0002333,2]
[313803737,1707732656397,-506.96,0.0002333,2]
[313803738,1707732656407,-500.0,0.0002333,2]
[313803739,1707732656418,-500.0,0.0002333,2]
[313803740,1707732656428,-687.2,0.0002333,2]
[313803741,1707732656438,-501.18,0.0002333,2]
[313803742,1707732656449,-500.0,0.0002333,2]
[313803743,1707732656460,-500.0,0.0002333,2]
[313803744,1707732656470,-723.46,0.0002333,2]
[313803745,1707732656480,-555.18,0.0002333,2]
[313803746,1707732656491,-500.0,0.0002333,2]
[313803747,1707732656501,-506.96,0.0002333,2]
[313803748,1707732656513,-500.0,0.0002333,2]
[313803749,1707732656523,-500.0,0.0002333,2]
[313803750,1707732656533,-500.0,0.0002333,2]
[313803751,1707732656543,-530.34,0.0002333,2]
[313803752,1707732656554,-641.46,0.0002333,2]
[313803753,1707732656564,-761.91,0.0002333,2]
[313803754,1707732656575,-916.75,0.00023341,2]
[313803755,1707732656585,-500.0,0.0002343,2]
[313803756,1707732656596,-500.0,0.0002343,2]
[313803757,1707732656606,-500.0,0.0002343,2]
[313803758,1707732656617,-500.0,0.0002343,2]
[313803759,1707732656627,-376.66011313,0.0002343,2]
[313803760,1707732656637,-500.0,0.0002343,2]
[313803761,1707732656647,-500.0,0.0002343,2]
[313803762,1707732656657,-651.08,0.0002343,2]
[313803763,1707732656668,-826.55,0.0002343,2]
[313803764,1707732656678,-964.34,0.0002343,2]
[313803765,1707732656688,-500.0,0.0002343,2]
[313803766,1707732656699,-500.0,0.0002343,2]
[313803767,1707732656709,-819.22,0.0002343,2]
[313803768,1707732656719,-500.0,0.0002343,2]
[313803769,1707732656728,-500.0,0.0002343,2]
[313803770,1707732656739,-557.37,0.0002343,2]
[313803771,1707732656748,-853.49,0.0002343,2]
[313803772,1707732656760,-1151.03,0.0002343,2]
[313803773,1707732656774,-500.0,0.0002343,2]
[313803774,1707732656784,-500.0,0.0002343,2]
[313803775,1707732656794,-981.5,0.0002343,2]
[313803776,1707732656805,-500.0,0.0002343,2]
[313803777,1707732656815,-1198.37,0.0002343,2]
[313803778,1707732656825,-520.38,0.0002343,2]
[313803779,1707732656835,-500.0,0.00023431,2]
[313803780,1707732656846,-500.0,0.00023431,2]
[313803781,1707732656860,-500.0,0.00023431,2]
[313803782,1707732656871,-500.0,0.00023431,2]
[313803783,1707732656881,-174.5930237,0.00023431,2]
[313803784,1707732656892,-500.0,0.00023431,2]
[313803785,1707732656903,-500.0,0.00023431,2]
[313803786,1707732656914,-246.51949692,0.00023431,2]
[313803787,1707732656925,-500.0,0.00023431,2]
[313803788,1707732656936,-500.0,0.00023431,2]
[313803789,1707732656947,-500.0,0.00023431,2]
[313803790,1707732656959,-500.0,0.00023431,2]
[313803791,1707732656970,-500.0,0.00023431,2]
[313803792,1707732656980,-500.0,0.00023431,2]
[313803793,1707732656991,-500.0,0.00023431,2]
[313803794,1707732657002,-557.22,0.00023431,2]
[313803795,1707732657014,-500.0,0.00023431,2]
[313803796,1707732657024,-500.0,0.00023431,2]
[313803797,1707732657035,-500.0,0.00023431,2]
[313803798,1707732657045,-500.0,0.00023431,2]
[313803799,1707732657055,-500.0,0.00023431,2]
[313803800,1707732657066,-500.0,0.00023431,2]
[313803801,1707732657076,-500.0,0.00023431,2]
[313803802,1707732657085,-500.0,0.00023431,2]
[313803803,1707732657095,-607.08,0.00023431,2]
[313803804,1707732657105,-500.0,0.00023431,2]
[313803805,1707732657115,-500.0,0.00023431,2]
[313803806,1707732657125,-500.0,0.00023431,2]
[313803807,1707732657135,-500.0,0.00023431,2]
[313803808,1707732657145,-500.0,0.00023431,2]
[313803809,1707732657155,-500.0,0.00023431,2]
[313803810,1707732657165,-500.0,0.00023431,2]
[313803811,1707732657175,-500.0,0.00023431,2]
[313803812,1707732657185,-500.0,0.00023431,2]
[313803813,1707732657195,-500.0,0.00023431,2]
[313803814,1707732657205,-590.76,0.00023431,2]
[313803815,1707732657215,-535.39,0.00023431,2]
[313803816,1707732657226,-500.0,0.00023431,2]
[313803817,1707732657236,-855.69,0.00023431,2]
[313803818,1707732657247,-156.17222164,0.00023431,2]
[313803819,1707732657257,-682.75,0.00023431,2]
[313803820,1707732657268,-500.0,0.00023431,2]
[313803821,1707732657278,-500.0,0.00023431,2]
[313803822,1707732657287,-500.0,0.00023431,2]
[313803823,1707732657297,-500.0,0.00023431,2]
[313803824,1707732657307,-279.93,0.00023431,2]
[313803825,1707732657317,-500.0,0.00023431,2]
[313803826,1707732657327,-500.0,0.00023431,2]
[313803827,1707732657337,-500.0,0.00023431,2]
[313803828,1707732657347,-500.0,0.00023431,2]
[313803829,1707732657357,-500.0,0.00023431,2]
[313803830,1707732657367,-500.0,0.00023431,2]
[313803831,1707732657377,-500.0,0.00023431,2]
[313803832,1707732657387,-500.0,0.00023431,2]
[313803833,1707732657398,-500.0,0.00023431,2]
[313803834,1707732657409,-500.0,0.00023431,2]
[313803835,1707732657420,-500.0,0.00023431,2]
[313803836,1707732657696,-525.27,0.00023431,2]
[313803837,1707732657707,-871.05,0.00023431,2]
[313803838,1707732657717,-500.0,0.00023431,2]
[313803839,1707732657727,-500.0,0.00023431,2]
[313803840,1707732657737,-500.0,0.00023431,2]
[313803841,1707732657747,-675.33,0.00023431,2]
[313803842,1707732657759,-659.55,0.00023431,2]
[313803843,1707732657771,-500.0,0.00023431,2]
[313803844,1707732657781,-561.66,0.00023431,2]
[313803845,1707732657790,-500.0,0.00023431,2]
[313803846,1707732657801,-500.0,0.00023431,2]
[313803847,1707732657811,-500.0,0.00023431,2]
[313803848,1707732657822,-536.81,0.00023431,2]
[313803849,1707732657832,-500.0,0.00023431,2]
[313803850,1707732657842,-500.0,0.00023431,2]
[313803851,1707732657852,-500.0,0.00023431,2]
[313803852,1707732657862,-500.0,0.00023431,2]
[313803853,1707732657873,-500.0,0.00023431,2]
[313803854,1707732657883,-520.88,0.00023431,2]
[313803855,1707732657892,-500.0,0.00023431,2]
[313803856,1707732657901,-500.0,0.00023431,2]
[313803857,1707732657911,-403.04113886,0.00023431,2]
[313803858,1707732657921,-500.0,0.00023431,2]
[313803859,1707732657930,-500.0,0.00023438,2]
[313803860,1707732657939,-5445.56,0.00023503,2]
[313803861,1707732657949,-5838.81,0.00023503,2]
[313803862,1707732657960,-2035.42,0.00023503,2]
[313803863,1707732657970,-797.58,0.00023503,2]
[313803864,1707732657979,-509.0,0.00023503,2]
[313803865,1707732657988,-5762.06,0.00023503,2]
[313803866,1707732657998,-507.13,0.00023503,2]
[313803867,1707732658008,-500.0,0.00023503,2]
[313803868,1707732658018,-1688.29,0.00023503,2]
[313803869,1707732658027,-552.02,0.00023503,2]
[313803870,1707732658037,-500.0,0.00023503,2]
[313803871,1707732658046,-5762.69,0.00023503,2]
[313803872,1707732658055,-1387.68,0.00023503,2]
[313803873,1707732658064,-2552.03,0.00023503,2]
[313803874,1707732658074,-470.39574117,0.00023503,2]
[313803875,1707732658083,-961.84,0.00023503,2]
[313803876,1707732658092,-1526.29,0.00023503,2]
[313803877,1707732658102,-592.06,0.00023503,2]
[313803878,1707732658111,-500.0,0.00023503,2]
[313803879,1707732658120,-500.0,0.00023503,2]
[313803880,1707732658130,-3968.69,0.00023503,2]
[313803881,1707732658139,-1739.19,0.00023503,2]
[313803882,1707732658148,-500.0,0.00023503,2]
[313803883,1707732658158,-2020.87,0.00023503,2]
[313803884,1707732658168,-9391.06,0.00023503,2]
[313803885,1707732658178,-500.0,0.00023503,2]
[313803886,1707732658188,-500.0,0.00023503,2]
[313803887,1707732658197,-500.0,0.00023503,2]
[313803888,1707732658206,-500.0,0.00023503,2]
[313803889,1707732658216,-500.0,0.00023503,2]
[313803890,1707732658225,-500.0,0.00023503,2]
[313803891,1707732658234,-1593.42,0.00023503,2]
[313803892,1707732658243,-500.0,0.00023503,2]
[313803893,1707732658252,-2747.24,0.00023503,2]
[313803894,1707732658265,-500.0,0.00023503,2]
[313803895,1707732658274,-535.71,0.00023503,2]
[313803896,1707732658283,-150.0,0.00023503,2]
[313803897,1707732658292,-150.0,0.00023503,2]
[313803898,1707732658301,-500.0,0.00023503,2]
[313803899,1707732658311,-777.44,0.00023503,2]
[313803900,1707732658320,-987.35,0.00023503,2]
[313803901,1707732658330,-933.88,0.00023503,2]
[313803902,1707732658339,-500.0,0.00023503,2]
[313803903,1707732658348,-500.0,0.00023503,2]
[313803904,1707732658357,-572.78,0.00023503,2]
[313803905,1707732658366,-1125.23,0.00023503,2]
[313803906,1707732658376,-3729.13,0.00023503,2]
[313803907,1707732658386,-1850.91,0.00023503,2]
[313803908,1707732658395,-712.82,0.00023503,2]
[313803909,1707732658405,-500.0,0.00023504,2]
[313803910,1707732658414,-268.25634964,0.00023504,2]
[313803911,1707732658424,-500.0,0.00023504,2]
[313803912,1707732658433,-500.0,0.00023504,2]
[313803913,1707732658443,-558.87,0.00023504,2]
[313803914,1707732658453,-500.0,0.00023504,2]
[313803915,1707732658462,-500.0,0.00023504,2]
[313803916,1707732658471,-500.0,0.00023504,2]
[313803917,1707732658481,-526.94,0.00023504,2]
[313803918,1707732658491,-500.0,0.00023504,2]
[313803919,1707732658501,-500.0,0.00023504,2]
[313803920,1707732658512,-727.92,0.00023504,2]
[313803921,1707732658522,-670.9,0.00023504,2]
[313803922,1707732658531,-500.0,0.00023504,2]
[313803923,1707732658541,-500.0,0.00023504,2]
[313803924,1707732658551,-906.87,0.00023504,2]
[313803925,1707732658561,-500.0,0.00023504,2]
[313803926,1707732658571,-500.0,0.00023504,2]
[313803927,1707732658581,-824.95,0.00023504,2]
[313803928,1707732658592,-500.0,0.00023504,2]
[313803929,1707732658602,-501.14,0.00023504,2]
[313803930,1707732658612,-500.0,0.00023504,2]
[313803931,1707732658622,-500.0,0.00023504,2]
[313803932,1707732658631,-500.0,0.00023504,2]
[313803933,1707732658641,-500.0,0.00023504,2]
[313803934,1707732658650,-530.88,0.00023504,2]
[313803935,1707732658659,-500.0,0.00023504,2]
[313803936,1707732658669,-500.0,0.00023504,2]
[313803937,1707732658679,-504.17,0.00023504,2]
[313803938,1707732658689,-500.0,0.00023504,2]
[313803939,1707732658699,-500.0,0.00023504,2]
[313803940,1707732658709,-500.0,0.00023504,2]
[313803941,1707732658718,-500.0,0.00023504,2]
[313803942,1707732658727,-500.0,0.00023504,2]
[313803943,1707732658736,-747.08,0.00023504,2]
[313803944,1707732658745,-797.77,0.00023504,2]
[313803945,1707732658755,-500.0,0.00023504,2]
[313803946,1707732658768,-500.0,0.00023504,2]
[313803947,1707732658778,-500.0,0.00023504,2]
[313803948,1707732658788,-297.76377998,0.00023504,2]
[313803949,1707732658797,-500.0,0.00023504,2]
[313803950,1707732658806,-694.96,0.00023504,2]
[313803951,1707732658816,-522.69,0.00023504,2]
[313803952,1707732658825,-500.0,0.00023504,2]
[313803953,1707732658835,-500.0,0.00023504,2]
[313803954,1707732658844,-500.0,0.00023504,2]
[313803955,1707732658853,-500.0,0.00023504,2]
[313803956,1707732658863,-500.0,0.00023504,2]
[313803957,1707732658873,-233.16380876,0.00023504,2]
[313803958,1707732658882,-568.84,0.00023504,2]
[313803959,1707732658891,-500.0,0.00023504,2]
[313803960,1707732658901,-613.32,0.00023504,2]
[313803961,1707732658910,-547.41325541,0.00023504,2]
[313803962,1707732658919,-500.0,0.00023504,2]
[313803963,1707732658928,-500.0,0.00023504,2]
[313803964,1707732658938,-500.0,0.00023504,2]
[313803965,1707732658947,-500.0,0.00023504,2]
[313803966,1707732658956,-1062.0,0.00023504,2]
[313803967,1707732658966,-500.0,0.00023504,2]
[313803968,1707732658976,-500.0,0.00023504,2]
[313803969,1707732658986,-888.32,0.00023504,2]
[313803970,1707732658995,-500.0,0.00023504,2]
[313803971,1707732659004,-953.38,0.00023504,2]
[313803972,1707732659015,-693.46,0.00023504,2]
[313803973,1707732659025,-769.06,0.00023504,2]
[313803974,1707732659034,-1184.86,0.00023504,2]
[313803975,1707732659043,-500.0,0.00023504,2]
[313803976,1707732659053,-604.59,0.00023504,2]
[313803977,1707732659063,-500.0,0.00023504,2]
[313803978,1707732659073,-500.0,0.00023504,2]
[313803979,1707732659084,-650.84,0.00023504,2]
[313803980,1707732659093,-500.0,0.00023504,2]
[313803981,1707732659102,-500.0,0.00023504,2]
[313803982,1707732659112,-804.72,0.00023504,2]
[313803983,1707732659121,-500.0,0.00023504,2]
[313803984,1707732659131,-500.0,0.00023504,2]
[313803985,1707732659141,-500.0,0.00023504,2]
[313803986,1707732659151,-500.0,0.00023504,2]
[313803987,1707732659161,-282.02,0.00023504,2]
[313803988,1707732659170,-500.0,0.00023504,2]
[313803989,1707732659181,-801.6,0.00023504,2]
[313803990,1707732659190,-500.0,0.00023504,2]
[313803991,1707732659199,-500.0,0.00023504,2]
[313803992,1707732659209,-500.0,0.00023504,2]
[313803993,1707732659218,-509.35,0.00023504,2]
[313803994,1707732659227,-500.0,0.00023504,2]
[313803995,1707732659237,-500.0,0.00023504,2]
[313803996,1707732659246,-500.0,0.00023504,2]
[313803997,1707732659255,-500.0,0.00023504,2]
[313803998,1707732659267,-1192.79,0.00023504,2]
[313803999,1707732659276,-500.0,0.00023504,2]
[313804000,1707732659286,-958.1,0.00023504,2]
[313804001,1707732659295,-638.65,0.00023504,2]
[313804002,1707732659304,-500.0,0.00023504,2]
[313804003,1707732659314,-500.0,0.00023504,2]
[313804004,1707732659323,-500.0,0.00023504,2]
[313804005,1707732659332,-500.0,0.00023504,2]
[313804006,1707732659341,-1203.0,0.00023504,2]
[313804007,1707732659350,-500.0,0.00023504,2]
[313804008,1707732659359,-500.0,0.00023504,2]
[313804009,1707732659368,-579.27,0.00023504,2]
[313804010,1707732659378,-500.0,0.00023504,2]
[313804011,1707732659387,-525.49,0.00023504,2]
[313804012,1707732659396,-690.18,0.00023504,2]
[313804013,1707732659405,-1476.56,0.00023504,2]
[313804014,1707732659414,-500.0,0.00023504,2]
[313804015,1707732659423,-500.0,0.00023504,2]
[313804016,1707732659433,-885.37,0.00023504,2]
[313804017,1707732659442,-975.71,0.00023504,2]
[313804018,1707732659451,-500.0,0.00023504,2]
[313804019,1707732659461,-500.0,0.00023504,2]
[313804020,1707732659470,-500.0,0.00023504,2]
[313804021,1707732659480,-1204.53,0.00023504,2]
[313804022,1707732659489,-500.0,0.00023504,2]
[313804023,1707732659499,-691.02,0.00023504,2]
[313804024,1707732659510,-500.0,0.00023504,2]